Cogmind - Beta 16 @@@ ROGUE MODE // 2025.11.14 @ 10:41:28 Player: lvl5hm Result: Destroyed by S-10 Pest with Light Assault Rifle Performance ------------- Evolutions (2) 1000 Regions Visited (4) 800 Robots Destroyed (1) 5 Value Destroyed (1) 1 Prototype IDs (0) 0 Alien Tech Used (0) 0 Bonus (0) 0 TOTAL SCORE: 1806 Bonus ------- None Cogmind --------- Core Integrity 0/550 Matter 293/300 Energy 99/100 System Corruption 0% Temperature Cool (0) Movement Core (50) Location -8/Materials Parts ------- > --- POWER (1) -------- (None) > --- PROPULSION (4) --- (None) > --- UTILITY (4) ------ (None) > --- WEAPON (2) ------- (None) > --- INVENTORY (5) ---- Micro Nuclear Core Micro Nuclear Core Experimental Sensor Array Makeshift Axe Peak State ------------ > --- POWER ------------ Micro Nuclear Core > --- PROPULSION ------- VTOL Module VTOL Module > --- UTILITY ---------- Advanced Weight Redist. System Medium Armor Plating > --- WEAPON ----------- (None) > --- INVENTORY -------- Micro Nuclear Core Experimental Sensor Array Datajack Makeshift Axe [Rating: 14] Favorites ----------- Power Micro Nuclear Core Power Core Micro Nuclear Core Propulsion VTOL Module Flight Unit VTOL Module Utility Advanced Weight Redist. System Device Advanced Weight Redist. System Protection Medium Armor Plating Weapon None Build | -11 -10 -9 -9 -8 ------- Run | Yrd Mat Mat Min Mat Slots Evolved 4 | . . 2 . 2 Power . | . . . . . Propulsion 2 | . . 2 . . Utility 2 | . . . . 2 Weapon . | . . . . . Parts Attached 5 | . . . 2 3 Power 1 | . . . . 1 Engine . | . . . . . Core 1 | . . . . 1 Reactor . | . . . . . Propulsion 2 | . . . 2 . Treads . | . . . . . Leg . | . . . . . Wheel . | . . . . . Hover . | . . . . . Flight 2 | . . . 2 . Utility 2 | . . . . 2 Device 1 | . . . . 1 Storage . | . . . . . Processor . | . . . . . Hackware . | . . . . . Protection 1 | . . . . 1 Artifact . | . . . . . Weapon . | . . . . . Energy Gun . | . . . . . Energy Cannon . | . . . . . Ballistic Gun . | . . . . . Ballistic Cannon . | . . . . . Launcher . | . . . . . Special Weapon . | . . . . . Impact Weapon . | . . . . . Slashing Weapon . | . . . . . Piercing Weapon . | . . . . . Special Melee Weapon . | . . . . . Unidentified Prototypes . | . . . . . Parts Lost 2 | . . . . 2 Power . | . . . . . Propulsion 1 | . . . . 1 Utility 1 | . . . . 1 Weapon . | . . . . . Highest Loss Streak 2 | . . . . 2 To Critical Strikes . | . . . . . Average Backups 2 | . 1 1 2 4 Power 1 | . 1 1 1 1 Propulsion . | . . . . . Utility . | . . . . 1 Weapon . | . . . . 1 Tool/Special . | . . . . . Unused Backups 5 | . . . . 5 Power 2 | . . . . 2 Propulsion . | . . . . . Utility 1 | . . . . 1 Weapon 1 | . . . . 1 Tool/Special 1 | . . . . 1 Average Slot Usage (%) 11 | . . . 20 14 Flight 10 | . . . 20 9 Peak Build Rating 14 | . . . 5 14 Average Rating 3 | . . . 4 5 On Entrance 1 | . . . . 5 Avg Prop Armor Cover (%) . | . . . . . Naked Turns 115 | . 38 39 5 33 Heaviest Build 13 | . . . . 13 Greatest Support 17 | 3 3 3 8 17 Greatest Overweight (x) . | . . . . . Average Overweight (x) . | . . . . . Largest Inventory Capacity 5 | 5 5 5 5 5 Average Capacity 5 | 5 5 5 5 5 Most Carried 5 | 1 1 3 4 5 Average Carried 2 | . 1 1 2 4 Final Capacity 5 | 5 5 5 5 5 Final Carried 4 | 1 1 3 4 4 Class Distribution -------------------- 60% | Mutant 39% | Sprinter Dominant Class ---------------- Mutant | -10/Materials Mutant | -9/Materials Sprinter | -9/Mines Mutant | -8/Materials Resources | -11 -10 -9 -9 -8 ----------- Run | Yrd Mat Mat Min Mat Matter Collected 233 | 158 30 . . 45 Remotely . | . . . . . Salvage Created 30 | . 30 . . . Parts 1 | . 1 . . . Haulers Intercepted . | . . . . . Recyclers Shooed . | . . . . . Parts Field Recycled . | . . . . . Retrieved Matter . | . . . . . Parts Self-Destructed . | . . . . . Prevented . | . . . . . Parts Restored . | . . . . . Kills | -11 -10 -9 -9 -8 ------- Run | Yrd Mat Mat Min Mat Combat Hostiles Destroyed . | . . . . . Classes Destroyed 1 | . 1 . . . Worker 1 | . 1 . . . Best Kill Streak 1 | . 1 . . . Combat Bots Only . | . . . . . Max Kills in Single Turn 1 | . 1 . . . Gunslinging . | . . . . . Exploded . | . . . . . Melee . | . . . . . Uniques/NPCs Destroyed . | . . . . . Combat | -11 -10 -9 -9 -8 -------- Run | Yrd Mat Mat Min Mat Hostile Shots Fired 118 | . 21 45 2 50 Missed 42 | . 9 16 2 15 Hits 76 | . 12 29 . 35 Melee 12 | . . . . 12 Projectile 64 | . 12 29 . 23 AOE 2 | . . . . 2 Critical Strikes 10 | . . . . 10 Damage Taken 1044 | . 112 265 . 667 Core 929 | . 112 265 . 552 Absorbed by Shields . | . . . . . Core Remaining (%) 62 | 100 55 . 33 . Volleys Fired . | . . . . . Largest . | . . . . . Hottest . | . . . . . Shots Fired . | . . . . . Gun . | . . . . . Cannon . | . . . . . Launcher . | . . . . . Special . | . . . . . Kinetic . | . . . . . Thermal . | . . . . . Explosive . | . . . . . Electromagnetic . | . . . . . Robot Hit Streak . | . . . . . Robot Miss Streak . | . . . . . Penetration Max . | . . . . . Secondary Targets . | . . . . . Shots Hit Robots . | . . . . . Core Hits 3 | . 3 . . . Critical Kills . | . . . . . Critical Parts Destroyed . | . . . . . Critical Strikes . | . . . . . Melee Attacks . | . . . . . Impact . | . . . . . Slashing . | . . . . . Piercing . | . . . . . Sneak Attacks . | . . . . . Combat Hostiles . | . . . . . Follow-up Attacks . | . . . . . Damage Inflicted 28 | . 15 . . 13 Guns . | . . . . . Cannons . | . . . . . Explosions . | . . . . . Melee . | . . . . . Ramming 28 | . 15 . . 13 Kinetic . | . . . . . Thermal . | . . . . . Explosive . | . . . . . Electromagnetic . | . . . . . Impact . | . . . . . Slashing . | . . . . . Piercing . | . . . . . Highest Corruption . | . . . . . Average Corruption . | . . . . . Corruption Purged . | . . . . . Corruption Blocked . | . . . . . Overload Shots . | . . . . . Overflow Damage . | . . . . . Projectiles . | . . . . . Explosions . | . . . . . Melee . | . . . . . Knockbacks . | . . . . . Impact . | . . . . . Kinetic . | . . . . . Secondary . | . . . . . Self-Inflicted Damage 11 | . 6 . . 5 Shots . | . . . . . Rammed 7 | . 4 . . 3 Targets Rammed 7 | . 4 . . 3 Kicked . | . . . . . Crushed . | . . . . . Highest Temperature . | . . . . . Average Temperature . | . . . . . Received Heat Transfer 225 | . 21 42 . 162 Siege Activations . | . . . . . Martial Activations . | . . . . . Shielding Activations . | . . . . . Robots Disrupted . | . . . . . Combat Hostiles . | . . . . . Robots Corrupted . | . . . . . Combat Hostiles . | . . . . . Parts Fried . | . . . . . Impact Corruptions . | . . . . . Robots Melted . | . . . . . Combat Hostiles . | . . . . . Parts Melted . | . . . . . Heat Transferred . | . . . . . Parts Sabotaged . | . . . . . Parts Stolen . | . . . . . Parts Stripped . | . . . . . Power Chain Reactions . | . . . . . Alert | -11 -10 -9 -9 -8 ------- Run | Yrd Mat Mat Min Mat Maximum Alert Level . | . . . . . Low Security (%) 100 | 100 100 100 100 100 Level 1 . | . . . . . Level 2 . | . . . . . Level 3 . | . . . . . Level 4 . | . . . . . Level 5 . | . . . . . High Security . | . . . . . Max Security . | . . . . . Peak Influence 35 | . 35 14 1 15 Initial 14 | . . 14 1 . Average 2 | . 4 8 . 2 Influence Increases 65 | . 35 . . 30 Destroy 0b10 Robot/NC 5 | . 5 . . . Partial Spotted 15 | . . . . 15 Lose Combat Pursuer 45 | . 30 . . 15 Influence Decreases 60 | . . 31 4 25 Entered New Map 24 | . . 21 3 . Time Decay 21 | . . 10 1 10 Lost Part 15 | . . . . 15 Squads Dispatched 5 | . 1 1 . 3 Investigation . | . . . . . Extermination . | . . . . . Reinforcement 5 | . 1 1 . 3 Assault . | . . . . . Garrison . | . . . . . Intercept . | . . . . . Searches Triggered . | . . . . . Construction Impeded . | . . . . . Haulers Reinforced . | . . . . . Active Scanning Responses . | . . . . . Cargo Convoy Interrupts . | . . . . . Stealth | -11 -10 -9 -9 -8 --------- Run | Yrd Mat Mat Min Mat Distress Signals 2 | . . . . 2 Communications Jammed . | . . . . . Distress Signals . | . . . . . Times Spotted 45 | . 7 15 2 21 Peak Tracking Total 17 | . 6 17 2 17 Tactical Retreats 2 | . 1 . . 1 Traps | -11 -10 -9 -9 -8 ------- Run | Yrd Mat Mat Min Mat Traps Triggered . | . . . . . Indirectly . | . . . . . Trap Hack Attempts . | . . . . . Triggered . | . . . . . Disarmed . | . . . . . Reprogrammed . | . . . . . Reused . | . . . . . Traps Extracted . | . . . . . Installed . | . . . . . Triggered . | . . . . . Machines | -11 -10 -9 -9 -8 ---------- Run | Yrd Mat Mat Min Mat Machines Disabled . | . . . . . Max in Single Turn . | . . . . . Machines Repaired . | . . . . . Machines Dismantled . | . . . . . Machines Sabotaged . | . . . . . Overloaded Fab Kills . | . . . . . Hacking | -11 -10 -9 -9 -8 --------- Run | Yrd Mat Mat Min Mat Machines Accessed . | . . . . . Terminals . | . . . . . Fabricators . | . . . . . Repair Stations . | . . . . . Recycling Units . | . . . . . Scanalyzers . | . . . . . Garrison Access . | . . . . . Total Hacks . | . . . . . Successful . | . . . . . Failed . | . . . . . Catastrophic . | . . . . . Database Lockouts . | . . . . . Manual . | . . . . . Terminals . | . . . . . Fabricators . | . . . . . Repair Stations . | . . . . . Recycling Units . | . . . . . Scanalyzers . | . . . . . Garrison Access . | . . . . . Terminal Hacks . | . . . . . Fabricator Hacks . | . . . . . Repair Station Hacks . | . . . . . Recycling Unit Hacks . | . . . . . Scanalyzer . | . . . . . Garrison Access Hacks . | . . . . . Unauthorized Hacks . | . . . . . Terminals . | . . . . . Fabricators . | . . . . . Repair Stations . | . . . . . Recycling Units . | . . . . . Scanalyzers . | . . . . . Garrison Access . | . . . . . Data Cores Recovered . | . . . . . Used . | . . . . . Hacking Detections . | . . . . . Full Trace Events . | . . . . . Feedback Events . | . . . . . Feedback Blocked . | . . . . . Robot Schematics Acquired . | . . . . . Robots Built . | . . . . . Authchips . | . . . . . Time . | . . . . . Total Robot Build Rating . | . . . . . Part Schematics Acquired . | . . . . . Parts Built . | . . . . . Authchips . | . . . . . Time . | . . . . . Total Part Build Rating . | . . . . . Part Studies Acquired . | . . . . . Parts Repaired . | . . . . . Time . | . . . . . Parts Recycled . | . . . . . Recycled Matter . | . . . . . Retrieved Matter . | . . . . . Retrieved Components . | . . . . . Parts Scanalyzed . | . . . . . Part Schematics Acquired . | . . . . . Parts Damaged . | . . . . . Bothacking | -11 -10 -9 -9 -8 ------------ Run | Yrd Mat Mat Min Mat Used RIF Installer . | . . . . . Robots Hacked . | . . . . . Non-combat . | . . . . . Combat . | . . . . . Robot Hacks Applied . | . . . . . Relay Couplers Released . | . . . . . Fabnet Peak Effective % . | . . . . . Robots Rewired . | . . . . . Allies Hacked . | . . . . . Hacks Repelled . | . . . . . Allies | -11 -10 -9 -9 -8 -------- Run | Yrd Mat Mat Min Mat Total Allies . | . . . . . Largest Group . | . . . . . Highest-Rated Group . | . . . . . Highest-Rated Ally . | . . . . . Total Orders . | . . . . . Ally Attacks . | . . . . . Total Damage . | . . . . . Kills . | . . . . . Allies Corrupted . | . . . . . Allies Melted . | . . . . . Intel | -11 -10 -9 -9 -8 ------- Run | Yrd Mat Mat Min Mat Active Infowar (turns) . | . . . . . Robot Analysis Total . | . . . . . Derelict Logs Recovered 2 | . . . 2 . Drone Launches . | . . . . . Drone Recoveries . | . . . . . Exploration | -11 -10 -9 -9 -8 ------------- Run | Yrd Mat Mat Min Mat Turns Passed 270 | 13 38 39 100 80 Spaces Moved 624 | 24 67 74 290 169 Core 242 | 24 67 74 9 68 Treads . | . . . . . Legs . | . . . . . Wheels . | . . . . . Hover . | . . . . . Flight 382 | . . . 281 101 Fastest Speed 32 | 50 50 50 32 32 Average Speed 39 | 50 50 50 32 39 Slowest Speed 50 | 50 50 50 50 50 Overloaded Moves . | . . . . . Propulsion Burnouts . | . . . . . Robots Hopped 16 | . . . 8 8 Potential Cave-ins . | . . . . . Cave-ins Triggered . | . . . . . Exploration Rate (%) 27 | 4 21 21 66 26 Regions Visited 4 Branch Regions 1 Pre-discovered Areas 1 | . . . 1 . Known Exits Taken . | . . . . . Unknown Exits Taken 4 | 1 1 1 1 . Scrap Searched 1 | . . . 1 . Spaces Dug . | . . . . . Terrain Destroyed . | . . . . . Melee . | . . . . . Projectile . | . . . . . AOE . | . . . . . Terrain Rammed . | . . . . . Walls Destroyed . | . . . . . Machines Disabled . | . . . . . Actions | -11 -10 -9 -9 -8 --------- Run | Yrd Mat Mat Min Mat Total 630 | 24 70 75 286 175 Wait . | . . . . . Move 590 | 23 66 73 273 155 Hop 14 | . . . 8 6 Pick Up 9 | 1 . 2 3 3 Fast Attach 1 | . . . . 1 Attach 5 | . . . 2 3 Detach 2 | . . . . 2 Swap . | . . . . . Drop 2 | . . . . 2 Fire . | . . . . . Melee . | . . . . . Ram 7 | . 4 . . 3 Kick . | . . . . . Crush . | . . . . . Escape Stasis . | . . . . . Rewire . | . . . . . Trap . | . . . . . Miscellaneous . | . . . . . Route ------- -11/Scrapyard -10/Materials -9/Materials -9/Mines -8/Materials History --------- Turn | Location | Event 6 | -11/Scrapyard | Discovered new exit (range 13) 14 | -11/Scrapyard | Entered Materials 44 | -10/Materials | Discovered new exit (range 16) 52 | -10/Materials | Entered another Materials area 52 | -9/Materials | Evolved 2 slots: Propulsion x2 83 | -9/Materials | Core integrity fell below 50% 85 | -9/Materials | Discovered new exit (range 14) 91 | -9/Materials | Entered Mines 130 | -9/Mines | Found a damaged Exp. Sensor Array with a note attached 131 | -9/Mines | Found Prototype Device 150 | -9/Mines | A weapon hastily lodged in a ceiling crevice suddenly fell to the ground 155 | -9/Mines | Learned location of Zion (-6) 190 | -9/Mines | Discovered new exit (range 4) 191 | -9/Mines | Entered Materials 191 | -8/Materials | Evolved 2 slots: Utility x2 246 | -8/Materials | Core integrity fell below 50% 259 | -8/Materials | Core integrity fell below 20% 271 | -8/Materials | Destroyed by S-10 Pest with Light Assault Rifle Last Messages --------------- 00236_ ALERT: Hostiles spotted, dispatching reinforcements to Terminal M004. 00238_ ALERT: Hostiles spotted, dispatching reinforcements to Terminal M011. 00244_ W-25 Informer destroyed. 00244_ Acquired 10 matter. 00245_ Penetrated by Slug. 00245_ Knocked back. 00246_ The unstable cave ceiling collapses. 00252_ Slammed into G-47 Trooper. 00253_ Critical hit (Burn: +37). 00253_ Slammed into G-47 Trooper. 00256_ Acquired 3 matter. 00260_ W-25 Informer sends out distress signal. 00261_ M-13 Machinist repairs C-17 Slicer. 00262_ VTOL Module severed. 00263_ M-13 Machinist repairs C-17 Slicer Surge Thruster. 00269_ S-10 Pest destroyed. 00270_ C-17 Slicer destroyed. Map ----- +----------------------------------------------------+ | ?????????????????????????????????????????????????? | | ?????????????????????????????????????????????????? | | ?????????????????????????????????????????????????? | | ?????????????????????????????????????????????????? | | ?????????????????????????????????????????????????? | | ?????????????????????????????????????????????????? | | ?????????????????????????????????????????????????? | | ?????????????????????????????????????????????????? | | ?????????????????????????????????????????????????? | | ??????????#####??????????????????????????????????? | | ?????????? #??????????????????????????????????? | | ######???" #??????????????????????????????????? | | #???" #?#######??????????????????????????? | | """ #?""" ?? #??????????????????????????? | | "G" # ?? ! #??????????????????????????? | | " " # " " ????"" ???????????????????????????? | | # "R" ????"T / ???????????????????????????? | | ! # """ ??????" ????????????????????????????? | | ###/##?? ?????? ????????????????????????????? | | ??# #???##+########+#######??????????????????????? | | ??# #???# #????#?????????????????? | | ### ##### #?? #?????????????????? | | = u / # #?????????????????? | | ###+################### %c/ #?????????????????? | | ?? ?????????????????# * # #?????????????????? | | ?? ?????????????????# @#?? #?????????????????? | | ? ????????????????# #????#?????????????????? | | ? ????????????????#s%s ??????????????????????? | | # ???????????????+ * ?????????????????????? | | # ???????????????# s u ????????????????????? | | ########??????????????### ####???????????????????? | | ????????????????????????# #??????????????????????? | | ????????????????????????# #??????????????????????? | | ????????????????????????# #??????????????????????? | | ?????????????????????????+#??????????????????????? | | ?????????????????????????????????????????????????? | | ?????????????????????????????????????????????????? | | ?????????????????????????????????????????????????? | | ?????????????????????????????????????????????????? | | ?????????????????????????????????????????????????? | | ?????????????????????????????????????????????????? | | ?????????????????????????????????????????????????? | | ?????????????????????????????????????????????????? | | ?????????????????????????????????????????????????? | | ?????????????????????????????????????????????????? | | ?????????????????????????????????????????????????? | | ?????????????????????????????????????????????????? | | ?????????????????????????????????????????????????? | | ?????????????????????????????????????????????????? | | ?????????????????????????????????????????????????? | +----------------------------------------------------+ Best States ------------- Heat Dissipation 31 Energy Generation 15 Energy Capacity 150 Matter Stores 300 Matter Capacity 300 Sight Range 16 Terrain Scan Density 10 Additional Mass Support 9 Armor Coverage 225 Evasion (%) 63 Item Schematics ----------------- None Robot Schematics ------------------ None Fabricated ------------ Nothing Repaired ---------- Nothing Studied --------- None Alien Tech Used ----------------- None Achievements -------------- None Challenges ------------ None Game ------ Seed MissileMakeshiftDeck Manual? 0 Play Time 00:07:36 Cumulative 220.0 hours Start 2025.11.14 @ 10:36:04 End 2025.11.14 @ 10:41:28 Sessions 1 Manual Loads 0 Difficulty Rogue Special Mode None Game No. 166 Rogue 166 Adventurer 0 Explorer 0 Win Type - Total 10 Types 6/0/2/1/0/0/0/1/0/0 Lore% 52 Gallery% 69 Achievement% 61 Wizard Run 0 Options --------- Layout 2 ASCII 0 Keyboard 1 Movement Arrows Keybinds 0 Fullscreen 1 Font 32/Tamsyn Map View 50x44 Zoom Use 0% Tactical HUD 1 Map Filters NONE Filters NONE Steam 1 RUN: 3cbbe03c-e8b5-4742-b52a-6c21f34e0ad1